fUSD/lending_fUSD_20240327
["ID","MTS","AMOUNT","RATE_DAILY","PERIOD"]
[320726586,1711539046046,-150.0,0.00054296,7]
[320726587,1711539046055,-173.032719,0.00054298,103]
[320726589,1711539046065,-150.0,0.00054304,7]
[320726590,1711539046074,-300.0,0.00054335,7]
[320726591,1711539046083,-300.0,0.00054342,7]
[320726592,1711539046092,-150.0,0.00054351,7]
[320726593,1711539046102,-150.0,0.0005436,7]
[320726594,1711539046112,-150.0,0.00054361,7]
[320726595,1711539046123,-150.0,0.00054366,7]
[320726596,1711539046132,-428.75879949,0.00054373,7]
[320726597,1711539046142,-150.0,0.00054381,7]
[320726598,1711539046152,-150.0,0.00054382,7]
[320726599,1711539046162,-150.0,0.00054393,7]
[320726600,1711539046172,-151.032719,0.00054398,97]
[320726601,1711539046184,-156.95,0.000544,7]
[320726602,1711539046194,-150.0,0.00054415,7]
[320726603,1711539046203,-150.0,0.00054423,7]
[320726604,1711539046213,-150.0,0.00054428,7]
[320726605,1711539046222,-150.0,0.00054438,7]
[320726606,1711539046233,-150.0,0.00054441,7]
[320726607,1711539046248,-150.0,0.00054448,7]
[320726608,1711539046257,-300.0,0.00054468,7]
[320726609,1711539046267,-166.74515287,0.00054471,60]
[320726610,1711539046276,-1500.0,0.00054485,7]
[320726611,1711539046287,-150.0,0.00054486,7]
[320726612,1711539046296,-507.0,0.00054493,120]
[320726613,1711539046306,-157.032718,0.00054498,103]
[320726614,1711539046315,-150.0,0.00054508,7]
[320726615,1711539046325,-3354.16,0.0005452,120]
[320726616,1711539046338,-1000.0,0.00054521,120]
[320726617,1711539046348,-150.0,0.00054525,7]
[320726618,1711539046357,-300.0,0.00054545,7]
[320726619,1711539046367,-156.14444312,0.00054546,60]
[320726620,1711539046376,-1500.0,0.0005455,7]
[320726621,1711539046386,-150.0,0.00054553,7]
[320726622,1711539046395,-150.0,0.00054562,7]
[320726623,1711539046404,-150.0,0.00054564,7]
[320726624,1711539046414,-150.0,0.0005457,7]
[320726625,1711539046425,-300.0,0.00054572,7]
[320726626,1711539046435,-150.0,0.00054584,7]
[320726627,1711539046444,-150.0,0.00054593,7]
[320726628,1711539046454,-151.032719,0.00054598,96]
[320726629,1711539046463,-1500.0,0.00054599,7]
[320726630,1711539046473,-9576.613557,0.000546,2]
[320726631,1711539046483,-151.0,0.000546,7]
[320726632,1711539046492,-151.0,0.000546,120]
[320726633,1711539046502,-151.0,0.000546,120]
[320726634,1711539046511,-261.273612,0.000546,120]
[320726635,1711539046521,-151.0,0.000546,120]
[320726636,1711539046530,-151.0,0.000546,14]
[320726637,1711539046540,-151.0,0.000546,120]
[320726638,1711539046551,-151.0,0.000546,120]
[320726639,1711539046560,-151.0,0.000546,30]
[320726640,1711539046570,-151.0,0.000546,120]
[320726641,1711539046579,-151.0,0.000546,120]
[320726642,1711539046588,-151.0,0.000546,120]
[320726643,1711539046597,-150.0,0.00054616,7]
[320726644,1711539046607,-1000.0,0.00054621,7]
[320726645,1711539046616,-200.0,0.00054627,30]
[320726646,1711539046626,-150.0,0.00054635,7]
[320726647,1711539046634,-150.0,0.00054647,7]
[320726648,1711539046643,-150.0,0.00054647,7]
[320726649,1711539046652,-281.621109,0.00054672,120]
[320726650,1711539046661,-150.0,0.00054678,7]
[320726651,1711539046672,-150.0,0.00054678,7]
[320726652,1711539046681,-150.0,0.00054692,7]
[320726653,1711539046690,-150.0,0.00054697,7]
[320726654,1711539046700,-173.032719,0.00054698,107]
[320726655,1711539046710,-150.0,0.00054698,7]
[320726656,1711539046720,-155.71,0.000547,8]
[320726657,1711539046730,-155.71,0.000547,8]
[320726658,1711539046739,-155.71,0.000547,8]
[320726659,1711539046750,-705.0,0.000547,30]
[320726660,1711539046761,-150.0,0.00054705,7]
[320726661,1711539046770,-500.0,0.00054744,90]
[320726662,1711539046780,-150.0,0.00054754,7]
[320726663,1711539046790,-150.0,0.00054755,7]
[320726664,1711539046801,-507.0,0.00054767,120]
[320726665,1711539046810,-150.0,0.00054772,7]
[320726666,1711539046820,-1500.0,0.00054772,7]
[320726667,1711539046829,-150.0,0.00054776,7]
[320726668,1711539046839,-186.66881899,0.00054777,101]
[320726669,1711539046851,-150.0,0.00054777,7]
[320726670,1711539046862,-150.0,0.00054778,7]
[320726671,1711539046872,-155.0,0.0005479,4]
[320726672,1711539046884,-1704.20679573,0.00054792,4]
[320726673,1711539046893,-204.33859659,0.00054792,4]
[320726674,1711539046903,-613.55627316,0.00054792,4]
[320726675,1711539046913,-403.29782879,0.00054792,4]
[320726676,1711539046923,-301.59367167,0.00054792,4]
[320726677,1711539046933,-195.38368771,0.00054792,4]
[320726678,1711539046944,-373.81422416,0.00054792,4]
[320726679,1711539046955,-253.34569364,0.00054792,4]
[320726680,1711539046967,-197.12599754,0.00054792,4]
[320726681,1711539046977,-623.3,0.00054794,30]
[320726682,1711539046987,-2000.0,0.00054794,120]
[320726683,1711539046996,-500.0,0.00054794,30]
[320726684,1711539047007,-633.50889758,0.00054794,120]
[320726685,1711539047017,-501.89321968,0.00054794,120]
[320726686,1711539047033,-162.56172822,0.00054794,120]
[320726687,1711539047043,-209.18835168,0.00054794,120]
[320726688,1711539047054,-500.0,0.00054794,120]
[320726689,1711539047064,-895.23,0.00054794,120]
[320726690,1711539047075,-575.28,0.00054794,120]
[320726691,1711539047086,-500.0,0.00054794,120]
[320726692,1711539047096,-500.0,0.00054794,120]
[320726693,1711539047107,-500.0,0.00054794,120]
[320726694,1711539047118,-500.0,0.00054794,120]
[320726695,1711539047130,-500.0,0.00054794,120]
[320726696,1711539047140,-500.0,0.00054794,120]
[320726697,1711539047151,-500.0,0.00054794,120]
[320726698,1711539047161,-500.0,0.00054794,120]
[320726699,1711539047171,-500.0,0.00054794,120]
[320726700,1711539047181,-500.0,0.00054794,120]
[320726701,1711539047191,-500.0,0.00054794,120]
[320726702,1711539047201,-500.0,0.00054794,120]
[320726703,1711539047211,-500.0,0.00054794,120]
[320726704,1711539047233,-500.0,0.00054794,120]
[320726705,1711539047243,-500.0,0.00054794,120]
[320726706,1711539047256,-520.48688602,0.00054794,120]
[320726707,1711539047267,-500.0,0.00054794,120]
[320726708,1711539047279,-563.96,0.00054794,120]
[320726709,1711539047289,-500.0,0.00054794,120]
[320726710,1711539047301,-500.0,0.00054794,120]
[320726711,1711539047312,-520.00232155,0.00054794,120]
[320726712,1711539047322,-500.0,0.00054794,2]
[320726713,1711539047336,-500.0,0.00054794,120]
[320726714,1711539047347,-500.0,0.00054794,120]
[320726715,1711539047357,-500.0,0.00054794,120]
[320726716,1711539047368,-500.0,0.00054794,120]
[320726717,1711539047378,-500.0,0.00054794,120]
[320726718,1711539047388,-500.0,0.00054794,120]
[320726719,1711539047398,-500.0,0.00054794,120]
[320726720,1711539047409,-500.0,0.00054794,120]
[320726721,1711539047420,-500.0,0.00054794,120]
[320726722,1711539047430,-500.0,0.00054794,120]
[320726723,1711539047440,-500.0,0.00054794,120]
[320726724,1711539047451,-500.0,0.00054794,120]
[320726725,1711539047461,-500.0,0.00054794,120]
[320726726,1711539047471,-500.0,0.00054794,120]
[320726727,1711539047481,-285.549847,0.00054794,120]
[320726728,1711539047491,-509.54233857,0.00054794,120]
[320726729,1711539047501,-500.0,0.00054794,120]
[320726730,1711539047511,-500.0,0.00054794,120]
[320726731,1711539047521,-500.0,0.00054794,120]
[320726732,1711539047531,-500.0,0.00054794,120]
[320726733,1711539047541,-500.0,0.00054794,120]
[320726734,1711539047551,-559.88549864,0.00054794,120]
[320726735,1711539047562,-229.87705536,0.00054794,120]
[320726736,1711539047572,-500.0,0.00054794,120]
[320726737,1711539047581,-500.0,0.00054794,120]
[320726738,1711539047591,-500.0,0.00054794,120]
[320726739,1711539047602,-500.0,0.00054794,120]
[320726740,1711539047612,-500.0,0.00054794,120]
[320726741,1711539047622,-500.0,0.00054794,120]
[320726742,1711539047633,-500.0,0.00054794,120]
[320726743,1711539047643,-500.0,0.00054794,120]
[320726744,1711539047654,-500.0,0.00054794,120]
[320726745,1711539047665,-500.0,0.00054794,120]
[320726746,1711539047677,-500.0,0.00054794,120]
[320726747,1711539047688,-500.0,0.00054794,120]
[320726748,1711539047698,-500.0,0.00054794,120]
[320726749,1711539047708,-500.0,0.00054794,120]
[320726750,1711539047720,-500.0,0.00054794,120]
[320726751,1711539047730,-151.0,0.00054794,120]
[320726752,1711539047741,-500.0,0.00054794,120]
[320726753,1711539047752,-976.2,0.00054794,120]
[320726754,1711539047763,-500.0,0.00054794,120]
[320726755,1711539047774,-500.0,0.00054794,120]
[320726756,1711539047785,-500.0,0.00054794,120]
[320726757,1711539047797,-500.0,0.00054794,120]
[320726758,1711539047807,-500.0,0.00054794,120]
[320726759,1711539047816,-508.45462986,0.00054794,120]
[320726760,1711539047826,-531.34,0.00054794,120]
[320726761,1711539047838,-500.0,0.00054794,120]
[320726762,1711539047849,-500.0,0.00054794,120]
[320726763,1711539047859,-500.0,0.00054794,120]
[320726764,1711539047870,-500.0,0.00054794,120]
[320726765,1711539047880,-500.0,0.00054794,120]
[320726766,1711539047890,-500.0,0.00054794,120]
[320726767,1711539047902,-575.24,0.00054794,120]
[320726768,1711539047912,-500.0,0.00054794,120]
[320726769,1711539047923,-500.0,0.00054794,120]
[320726770,1711539047933,-500.0,0.00054794,120]
[320726771,1711539047944,-500.0,0.00054794,120]
[320726772,1711539047955,-500.0,0.00054794,120]
[320726773,1711539047965,-503.38,0.00054794,120]
[320726774,1711539047975,-335.37387455,0.00054794,120]
[320726775,1711539047986,-498.44389385,0.00054794,120]
[320726776,1711539047996,-500.0,0.00054794,120]
[320726777,1711539048007,-544.36,0.00054794,120]
[320726778,1711539048018,-656.62,0.00054794,120]
[320726779,1711539048030,-500.0,0.00054794,120]
[320726780,1711539048040,-500.0,0.00054794,120]
[320726781,1711539048050,-1108.32,0.00054794,120]
[320726782,1711539048061,-786.05,0.00054794,120]
[320726783,1711539048071,-264.56591613,0.00054794,120]
[320726784,1711539048082,-500.0,0.00054794,120]
[320726785,1711539048252,-500.0,0.00054794,120]
[320726786,1711539048262,-500.0,0.00054794,120]
[320726787,1711539048271,-500.0,0.00054794,120]
[320726788,1711539048282,-500.0,0.00054794,120]
[320726789,1711539048292,-506.24247577,0.00054794,120]
[320726790,1711539048301,-508.66322346,0.00054794,120]
[320726791,1711539048311,-151.0,0.00054794,120]
[320726792,1711539048320,-500.0,0.00054794,120]
[320726793,1711539048330,-500.0,0.00054794,120]
[320726794,1711539048339,-500.0,0.00054794,120]
[320726795,1711539048349,-500.0,0.00054794,120]
[320726796,1711539048360,-500.0,0.00054794,120]
[320726797,1711539048369,-500.0,0.00054794,120]
[320726798,1711539048378,-500.0,0.00054794,120]
[320726799,1711539048388,-500.0,0.00054794,120]
[320726800,1711539048398,-582.28,0.00054794,120]
[320726801,1711539048407,-500.0,0.00054794,120]
[320726802,1711539048418,-500.0,0.00054794,120]
[320726803,1711539048429,-500.0,0.00054794,120]
[320726804,1711539048439,-500.0,0.00054794,120]
[320726805,1711539048450,-500.0,0.00054794,120]
[320726806,1711539048459,-500.0,0.00054794,120]
[320726807,1711539048469,-500.0,0.00054794,120]
[320726808,1711539048479,-151.0,0.00054794,120]
[320726809,1711539048491,-500.0,0.00054794,120]
[320726810,1711539048500,-888.0,0.00054794,120]
[320726811,1711539048510,-500.0,0.00054794,120]
[320726812,1711539048521,-500.0,0.00054794,120]
[320726813,1711539048531,-500.0,0.00054794,120]
[320726814,1711539048542,-500.0,0.00054794,120]
[320726815,1711539048553,-500.0,0.00054794,120]
[320726816,1711539048563,-500.0,0.00054794,120]
[320726817,1711539048573,-500.0,0.00054794,120]
[320726818,1711539048583,-500.0,0.00054794,120]
[320726819,1711539048593,-500.0,0.00054794,120]
[320726820,1711539048602,-500.0,0.00054794,120]
[320726821,1711539048612,-500.0,0.00054794,120]
[320726822,1711539048622,-500.0,0.00054794,120]
[320726823,1711539048632,-500.0,0.00054794,120]
[320726824,1711539048642,-500.0,0.00054794,120]
[320726825,1711539048652,-360.78982427,0.00054794,120]
[320726826,1711539048662,-500.0,0.00054794,120]
[320726827,1711539048673,-500.0,0.00054794,120]
[320726828,1711539048683,-500.0,0.00054794,120]
[320726829,1711539048693,-500.0,0.00054794,120]
[320726830,1711539048703,-500.0,0.00054794,120]
[320726831,1711539048712,-500.0,0.00054794,120]
[320726832,1711539048721,-500.0,0.00054794,120]
[320726833,1711539048731,-500.0,0.00054794,120]
[320726834,1711539048741,-500.0,0.00054794,120]
[320726835,1711539048751,-500.0,0.00054794,120]
[320726836,1711539048761,-500.0,0.00054794,120]
[320726837,1711539048772,-500.0,0.00054794,120]
[320726838,1711539048782,-500.0,0.00054794,120]
[320726839,1711539048792,-500.0,0.00054794,120]
[320726840,1711539048803,-500.0,0.00054794,120]
[320726841,1711539048815,-500.0,0.00054794,120]
[320726842,1711539048826,-1000.0,0.00054794,120]
[320726843,1711539048837,-500.0,0.00054794,120]
[320726844,1711539048847,-500.0,0.00054794,120]
[320726845,1711539048858,-613.33816375,0.00054794,120]
[320726846,1711539048869,-500.0,0.00054794,120]
[320726847,1711539048879,-500.0,0.00054794,120]
[320726848,1711539048890,-500.0,0.00054794,120]
[320726849,1711539048900,-650.65,0.00054794,120]
[320726850,1711539048910,-500.0,0.00054794,120]
[320726851,1711539048920,-500.0,0.00054794,120]
[320726852,1711539048930,-500.0,0.00054794,120]
[320726853,1711539048941,-500.0,0.00054794,120]
[320726854,1711539048950,-500.0,0.00054794,120]
[320726855,1711539048961,-500.0,0.00054794,120]
[320726856,1711539048971,-500.0,0.00054794,2]
[320726857,1711539048981,-666.49,0.00054794,120]
[320726858,1711539048991,-500.0,0.00054794,120]
[320726859,1711539049000,-512.61,0.00054794,120]
[320726860,1711539049009,-500.0,0.00054794,120]
[320726861,1711539049019,-500.0,0.00054794,120]
[320726862,1711539049029,-600.02660671,0.00054794,120]
[320726863,1711539049039,-500.0,0.00054794,120]
[320726864,1711539049050,-500.0,0.00054794,120]
[320726865,1711539049061,-551.06,0.00054794,120]
[320726866,1711539049071,-500.0,0.00054794,120]
[320726867,1711539049081,-500.0,0.00054794,120]
[320726868,1711539049092,-500.0,0.00054794,120]
[320726869,1711539049101,-500.0,0.00054794,120]
[320726870,1711539049112,-500.0,0.00054794,2]
[320726871,1711539049122,-500.0,0.00054794,120]
[320726872,1711539049132,-500.0,0.00054794,120]
[320726873,1711539049142,-500.0,0.00054794,120]
[320726874,1711539049151,-500.0,0.00054794,120]
[320726875,1711539049162,-500.0,0.00054794,120]
[320726876,1711539049173,-500.0,0.00054794,120]
[320726877,1711539049182,-500.0,0.00054794,120]
[320726878,1711539049192,-610.66,0.00054794,120]
[320726879,1711539049201,-502.07744116,0.00054794,120]
[320726880,1711539049211,-544.48,0.00054794,120]
[320726881,1711539049221,-500.0,0.00054794,120]
[320726882,1711539049231,-500.0,0.00054794,120]
[320726883,1711539049241,-508.48938092,0.00054794,120]
[320726884,1711539049253,-1264.52,0.00054794,120]
[320726885,1711539049263,-500.0,0.00054794,120]
[320726886,1711539049272,-500.0,0.00054794,120]
[320726887,1711539049282,-215.52844488,0.00054794,120]
[320726888,1711539049292,-564.14,0.00054794,120]
[320726889,1711539049302,-617.82,0.00054794,120]
[320726890,1711539049311,-500.0,0.00054794,120]
[320726891,1711539049321,-500.0,0.00054794,120]
[320726892,1711539049331,-832.09,0.00054794,120]
[320726893,1711539049343,-921.37,0.00054794,120]
[320726894,1711539049353,-695.47,0.00054794,120]
[320726895,1711539049363,-1458.74,0.00054794,120]
[320726896,1711539049372,-500.0,0.00054794,120]
[320726897,1711539049382,-500.0,0.00054794,120]
[320726898,1711539049391,-500.0,0.00054794,120]
[320726899,1711539049401,-1146.87,0.00054794,120]
[320726900,1711539049411,-500.0,0.00054794,120]
[320726901,1711539049421,-597.38,0.00054794,120]
[320726902,1711539049431,-2719.96,0.00054794,120]
[320726903,1711539049440,-500.0,0.00054794,120]
[320726904,1711539049450,-500.0,0.00054794,120]
[320726905,1711539049460,-500.0,0.00054794,120]
[320726906,1711539049470,-1170.95,0.00054794,120]
[320726907,1711539049480,-311.26468857,0.00054794,120]
[320726908,1711539049490,-500.0,0.00054794,120]
[320726909,1711539049499,-500.0,0.00054794,120]
[320726910,1711539049510,-500.0,0.00054794,120]
[320726911,1711539049521,-500.0,0.00054794,120]
[320726912,1711539049530,-1986.6,0.00054794,120]
[320726913,1711539049540,-500.0,0.00054794,120]
[320726914,1711539049550,-1057.95,0.00054794,120]
[320726915,1711539049559,-884.38,0.00054794,120]
[320726916,1711539049568,-500.0,0.00054794,120]
[320726917,1711539049578,-616.91,0.00054794,120]
[320726918,1711539049588,-533.04,0.00054794,120]
[320726919,1711539049599,-537.22,0.00054794,120]
[320726920,1711539049609,-702.45,0.00054794,120]
[320726921,1711539049619,-504.22494631,0.00054794,120]
[320726922,1711539049628,-5471.51,0.00054794,120]
[320726923,1711539049637,-500.0,0.00054794,120]
[320726924,1711539049647,-587.11,0.00054794,120]
[320726925,1711539049657,-500.0,0.00054794,120]
[320726926,1711539049666,-500.0,0.00054794,120]
[320726927,1711539049677,-500.0,0.00054794,120]
[320726928,1711539049686,-500.0,0.00054794,120]
[320726929,1711539049696,-500.0,0.00054794,120]
[320726930,1711539049706,-500.0,0.00054794,120]
[320726931,1711539049716,-500.0,0.00054794,120]
[320726932,1711539049725,-506.03034806,0.00054794,120]
[320726933,1711539049735,-500.0,0.00054794,120]
[320726934,1711539049745,-2128.3,0.00054794,120]
[320726935,1711539049755,-500.0,0.00054794,120]
[320726936,1711539049764,-500.0,0.00054794,120]
[320726937,1711539049775,-500.0,0.00054794,120]
[320726938,1711539049785,-500.0,0.00054794,120]
[320726939,1711539049796,-500.0,0.00054794,120]
[320726940,1711539049805,-961.96,0.00054794,120]
[320726941,1711539049815,-792.02,0.00054794,120]
[320726942,1711539049824,-613.31,0.00054794,120]
[320726943,1711539049834,-500.0,0.00054794,120]
[320726944,1711539049846,-500.0,0.00054794,120]
[320726945,1711539049856,-1258.8,0.00054794,120]
[320726946,1711539049866,-500.0,0.00054794,120]
[320726947,1711539049877,-510.87227896,0.00054794,120]
[320726948,1711539049888,-500.0,0.00054794,120]
[320726949,1711539049900,-500.0,0.00054794,120]
[320726950,1711539049911,-931.2,0.00054794,120]
[320726951,1711539049920,-663.5,0.00054794,120]
[320726952,1711539049932,-500.0,0.00054794,120]
[320726953,1711539049942,-500.0,0.00054794,120]
[320726954,1711539049953,-500.0,0.00054794,120]
[320726955,1711539049963,-1000.0,0.00054794,120]
[320726956,1711539049972,-1126.29,0.00054794,120]
[320726957,1711539049985,-500.0,0.00054794,120]
[320726958,1711539049996,-495.64243937,0.00054794,120]
[320726959,1711539050008,-905.93,0.00054794,120]
[320726960,1711539050018,-509.03370832,0.00054794,120]
[320726961,1711539050028,-596.37,0.00054794,120]
[320726962,1711539050038,-500.0,0.00054794,120]
[320726963,1711539050048,-500.0,0.00054794,120]
[320726964,1711539050059,-500.0,0.00054794,120]
[320726965,1711539050069,-500.0,0.00054794,120]
[320726966,1711539050079,-500.0,0.00054794,120]
[320726967,1711539050089,-1145.15,0.00054794,120]
[320726968,1711539050099,-1047.43,0.00054794,120]
[320726969,1711539050110,-500.0,0.00054794,120]
[320726970,1711539050119,-1079.19,0.00054794,120]
[320726971,1711539050129,-500.0,0.00054794,120]
[320726972,1711539050139,-500.0,0.00054794,120]
[320726973,1711539050149,-503.76982645,0.00054794,120]
[320726974,1711539050160,-500.0,0.00054794,120]
[320726975,1711539050170,-500.0,0.00054794,120]
[320726976,1711539050182,-500.0,0.00054794,120]
[320726977,1711539050192,-1050.1,0.00054794,120]
[320726978,1711539050202,-500.0,0.00054794,120]
[320726979,1711539050213,-500.0,0.00054794,120]
[320726980,1711539050224,-500.0,0.00054794,120]
[320726981,1711539050233,-668.88,0.00054794,120]
[320726982,1711539050242,-500.0,0.00054794,120]
[320726983,1711539050255,-500.0,0.00054794,120]
[320726984,1711539050265,-798.22,0.00054794,120]
[320726985,1711539050275,-500.0,0.00054794,120]
[320726986,1711539050285,-865.88,0.00054794,120]
[320726987,1711539050296,-500.0,0.00054794,120]
[320726988,1711539050306,-500.0,0.00054794,120]
[320726989,1711539050316,-500.0,0.00054794,120]
[320726990,1711539050328,-500.0,0.00054794,120]
[320726991,1711539050469,-500.0,0.00054794,120]
[320726992,1711539050480,-500.0,0.00054794,120]
[320726993,1711539050489,-500.0,0.00054794,120]
[320726994,1711539050499,-500.0,0.00054794,120]
[320726995,1711539050508,-805.48,0.00054794,120]
[320726996,1711539050517,-698.77,0.00054794,120]
[320726997,1711539050527,-500.0,0.00054794,120]
[320726998,1711539050536,-500.0,0.00054794,120]
[320726999,1711539050546,-895.29,0.00054794,120]
[320727000,1711539050555,-2904.63,0.00054794,120]
[320727001,1711539050565,-500.0,0.00054794,120]
[320727002,1711539050575,-500.0,0.00054794,120]
[320727003,1711539050585,-500.0,0.00054794,120]
[320727004,1711539050595,-1000.0,0.00054794,120]
[320727005,1711539050605,-575.0,0.00054794,120]
[320727006,1711539050616,-1000.0,0.00054794,120]
[320727007,1711539050625,-1000.0,0.00054794,120]
[320727008,1711539050634,-500.0,0.00054794,120]
[320727009,1711539050645,-1000.0,0.00054794,120]
[320727010,1711539050655,-1000.0,0.00054794,120]
[320727011,1711539050666,-1000.0,0.00054794,120]
[320727012,1711539050677,-1000.0,0.00054794,120]
[320727013,1711539050686,-1000.0,0.00054794,120]
[320727014,1711539050696,-1000.0,0.00054794,120]
[320727015,1711539050705,-500.0,0.00054794,120]
[320727016,1711539050715,-229.09615809,0.00054794,120]
[320727017,1711539050725,-1059.6,0.00054794,120]
[320727018,1711539050736,-624.76,0.00054794,120]
[320727019,1711539050746,-566.16,0.00054794,120]
[320727020,1711539050756,-500.0,0.00054794,120]
[320727021,1711539050766,-500.0,0.00054794,120]
[320727022,1711539050777,-505.45463998,0.00054794,120]
[320727023,1711539050789,-500.0,0.00054794,120]
[320727024,1711539050798,-596.27,0.00054794,120]
[320727025,1711539050807,-511.44,0.00054794,120]
[320727026,1711539050816,-500.0,0.00054794,120]
[320727027,1711539050826,-500.0,0.00054794,120]
[320727028,1711539050835,-670.39,0.00054794,120]
[320727029,1711539050844,-2461.83,0.00054794,120]
[320727030,1711539050853,-500.0,0.00054794,120]
[320727031,1711539050864,-500.0,0.00054794,120]
[320727032,1711539050874,-500.0,0.00054794,120]
[320727033,1711539050885,-1096.84,0.00054794,120]
[320727034,1711539050895,-500.0,0.00054794,120]
[320727035,1711539050906,-730.57,0.00054794,120]
[320727036,1711539050917,-526.24,0.00054794,120]
[320727037,1711539050927,-500.0,0.00054794,120]
[320727038,1711539050938,-500.0,0.00054794,120]
[320727039,1711539050949,-500.0,0.00054794,2]
[320727040,1711539050960,-813.47,0.00054794,120]
[320727041,1711539050971,-500.0,0.00054794,120]
[320727042,1711539050982,-500.0,0.00054794,120]
[320727043,1711539050992,-415.35,0.00054794,120]
[320727044,1711539051001,-500.0,0.00054794,120]
[320727045,1711539051012,-500.0,0.00054794,120]
[320727046,1711539051022,-982.22,0.00054794,120]
[320727047,1711539051033,-2323.15,0.00054794,120]
[320727048,1711539051043,-500.0,0.00054794,120]
[320727049,1711539051054,-952.22,0.00054794,120]
[320727050,1711539051065,-500.0,0.00054794,120]
[320727051,1711539051075,-1090.65,0.00054794,120]
[320727052,1711539051085,-2118.58,0.00054794,120]
[320727053,1711539051096,-819.74,0.00054794,120]
[320727054,1711539051105,-500.0,0.00054794,120]
[320727055,1711539051114,-500.0,0.00054794,120]
[320727056,1711539051124,-500.0,0.00054794,120]
[320727057,1711539051135,-500.0,0.00054794,120]
[320727058,1711539051145,-500.0,0.00054794,120]
[320727059,1711539051155,-500.0,0.00054794,120]
[320727060,1711539051165,-500.0,0.00054794,120]
[320727061,1711539051175,-500.0,0.00054794,120]
[320727062,1711539051185,-500.0,0.00054794,120]
[320727063,1711539051195,-500.0,0.00054794,120]
[320727064,1711539051206,-500.0,0.00054794,120]
[320727065,1711539051216,-680.58,0.00054794,120]
[320727066,1711539051226,-1006.99,0.00054794,120]
[320727067,1711539051236,-500.0,0.00054794,120]
[320727068,1711539051246,-601.25366618,0.00054794,120]
[320727069,1711539051259,-500.0,0.00054794,120]
[320727070,1711539051270,-500.0,0.00054794,120]
[320727071,1711539051281,-151.0,0.00054794,120]
[320727072,1711539051292,-500.0,0.00054794,120]
[320727073,1711539051303,-500.0,0.00054794,120]
[320727074,1711539051313,-2012.56,0.00054794,120]
[320727075,1711539051324,-500.0,0.00054794,120]
[320727076,1711539051334,-500.0,0.00054794,120]
[320727077,1711539051344,-500.0,0.00054794,120]
[320727078,1711539051354,-525.09,0.00054794,120]
[320727079,1711539051364,-500.0,0.00054794,120]
[320727080,1711539051374,-500.0,0.00054794,120]
[320727081,1711539051385,-1027.05,0.00054794,120]
[320727082,1711539051395,-151.0,0.00054794,120]
[320727083,1711539051404,-775.63,0.00054794,120]
[320727084,1711539051414,-909.15,0.00054794,120]
[320727085,1711539051424,-669.48,0.00054794,120]
[320727086,1711539051433,-2014.61,0.00054794,120]